fUSD/lending_fUSD_20250511
["ID","MTS","AMOUNT","RATE_DAILY","PERIOD"]
[360739440,1746959439039,-400.0,0.00019884,2]
[360739442,1746959439048,-400.0,0.00019884,2]
[360739444,1746959439058,-400.0,0.00019884,2]
[360739446,1746959439067,-385.05193187,0.00019884,2]
[360739533,1746959440450,-319.17449996,0.00019882,2]
[360739545,1746959440667,-80.82550004,0.00019882,2]
[360739546,1746959440678,-322.54449996,0.00019882,2]
[360739561,1746959444061,-1829.03324265,0.00019783,2]
[360739562,1746959444071,-77.45550004,0.00019882,2]
[360739563,1746959444081,-400.0,0.00019882,2]
[360739564,1746959444091,-400.0,0.00019883,2]
[360739565,1746959444101,-400.0,0.00019883,2]
[360739566,1746959444110,-4416.07806813,0.00019884,2]
[360739567,1746959444120,-400.0,0.00019884,2]
[360739568,1746959444129,-400.0,0.00019884,2]
[360739569,1746959444139,-400.0,0.00019884,2]
[360739570,1746959444148,-1012.52,0.00019884,2]
[360739571,1746959444157,-400.0,0.00019884,2]
[360739572,1746959444166,-400.0,0.00019884,2]
[360739573,1746959444176,-400.0,0.00019884,2]
[360739574,1746959444186,-400.0,0.00019884,2]
[360739575,1746959444196,-193.07907457,0.00019884,2]
[360739576,1746959444206,-400.0,0.00019884,2]
[360739578,1746959444215,-400.0,0.00019884,2]
[360739580,1746959444224,-400.0,0.00019884,2]
[360739582,1746959444233,-400.0,0.00019884,2]
[360739584,1746959444242,-1130.48,0.00019884,2]
[360739586,1746959444252,-400.0,0.00019884,2]
[360739587,1746959444261,-400.0,0.00019884,2]
[360739589,1746959444271,-400.0,0.00019884,2]
[360739590,1746959444280,-400.0,0.00019884,2]
[360739592,1746959444290,-400.0,0.00019884,2]
[360739594,1746959444300,-400.0,0.00019884,2]
[360739596,1746959444309,-400.0,0.00019884,2]
[360739598,1746959444319,-400.0,0.00019884,2]
[360739599,1746959444328,-20485.26226921,0.00019884,2]
[360739601,1746959446388,-400.0,0.00019882,2]
[360739602,1746959446398,-400.0,0.00019882,2]
[360739603,1746959446407,-400.0,0.00019882,2]
[360739604,1746959446417,-544.98,0.00019883,2]
[360739605,1746959446426,-2601.33,0.00019883,2]
[360739606,1746959446435,-400.0,0.00019883,2]
[360739607,1746959446445,-44820.12773079,0.00019884,2]
[360739608,1746959446454,-400.0,0.00019884,2]
[360739609,1746959446464,-33.56226921,0.00019884,2]
[360739610,1746959446494,-350.95,0.00019884,2]
[360739611,1746959446505,-66.24773079,0.00019884,2]
[360739612,1746959446515,-369.06129183,0.00019884,2]
[360739613,1746959446555,-400.0,0.00019883,2]
[360739614,1746959446565,-30.93870817,0.00019884,2]
[360739615,1746959446574,-400.0,0.00019884,2]
[360739616,1746959446583,-400.0,0.00019884,2]
[360739617,1746959446596,-2071.29,0.00019884,2]
[360739618,1746959446606,-400.0,0.00019884,2]
[360739619,1746959446615,-400.0,0.00019884,2]
[360739620,1746959446626,-400.0,0.00019884,2]
[360739621,1746959446636,-400.0,0.00019884,2]
[360739622,1746959446645,-400.0,0.00019884,2]
[360739623,1746959446655,-400.0,0.00019884,2]
[360739624,1746959446665,-400.0,0.00019884,2]
[360739625,1746959446674,-487.64,0.00019884,2]
[360739626,1746959446684,-400.0,0.00019884,2]
[360739627,1746959446693,-400.0,0.00019884,2]
[360739628,1746959446703,-369.08926298,0.00019884,2]
[360739629,1746959446731,-598.24,0.00019882,2]
[360739630,1746959446740,-30.91073702,0.00019884,2]
[360739631,1746959446751,-400.0,0.00019884,2]
[360739632,1746959446760,-229.95452582,0.00019884,2]
[360739633,1746959446828,-170.04547418,0.00019884,2]
[360739634,1746959446839,-400.0,0.00019884,2]
[360739635,1746959446849,-400.0,0.00019884,2]
[360739636,1746959446859,-400.0,0.00019884,2]
[360739637,1746959446868,-45.75263,0.00019884,2]
[360739848,1746959482689,50000.0,0.0003,30]
[360739850,1746959538432,4770.2041024,0.0003,30]
[360739851,1746959597046,250.0,0.00017,2]
[360739852,1746959601513,500.0,0.00030099,120]
[360739853,1746959678650,158.36,0.00013699,2]
[360739854,1746959678790,158.36,0.00013699,2]
[360739855,1746959679189,158.36,0.00013699,2]
[360739856,1746959679643,158.36,0.00013699,2]
[360739857,1746959680172,158.38169002,0.00013699,2]
[360739860,1746959866378,1000.0,0.0003,30]
[360739861,1746959907911,169.7,0.00020575,30]
[360739863,1746960049452,151.97,0.00013699,2]
[360739864,1746960052311,742.8,0.00016939,2]
[360739866,1746960119729,900.0,0.00030136,120]
[360739867,1746960139395,500.0,0.00030136,120]
[360739868,1746960150596,1000.0,0.0003,30]
[360739869,1746960200994,521.809538,0.00030137,120]
[360739871,1746960252947,10660.77,0.0003,30]
[360739872,1746960268007,4158.38,0.0003,30]
[360739873,1746960365743,52995.82140327,0.0003,30]
[360739874,1746960385040,1113.6,0.00025871,120]
[360739875,1746960385225,1113.6,0.00028223,120]
[360739876,1746960411063,50000.0,0.0003,30]
[360739877,1746960424540,1000.0,0.0003,30]
[360739878,1746960426928,1000.0,0.0003,33]
[360739879,1746960444095,-194.40658338,0.00018815,2]
[360739880,1746960447091,-919.19341662,0.00018815,2]
[360739881,1746960447113,-175.66524421,0.0001883,2]
[360739882,1746960479752,1000.0,0.0003,31]
[360739883,1746960485186,1000.0,0.0003,35]
[360739884,1746960490269,300.0,0.0003,30]
[360739900,1746960631618,-424.99691067,0.00017999,2]
[360739902,1746960631720,-775.00308933,0.00017999,2]
[360739903,1746960631729,-283.44184732,0.00017999,2]
[360739904,1746960631741,-16.55815268,0.00017999,2]
[360739905,1746960631750,-9555.01179613,0.00018,2]
[360739906,1746960631760,-8504.66988665,0.00018831,2]
[360739907,1746960631772,-556.63221567,0.00018831,2]
[360739908,1746960637546,-2938.90603946,0.00018831,2]
[360739909,1746960637557,-1472.63989494,0.00018831,2]
[360739910,1746960637599,-10427.15196328,0.00018831,2]
[360739911,1746960637609,-163.71,0.00018835,2]
[360739912,1746960637618,-166.93,0.00018838,2]
[360739913,1746960637628,-200.0,0.00018843,2]
[360739914,1746960637637,-504.86,0.0001886,2]
[360739915,1746960637649,-1000.0,0.00018926,2]
[360739916,1746960637661,-200.0,0.00018963,2]
[360739917,1746960637671,-1113.11,0.00019,2]
[360739918,1746960637680,-1113.11,0.00019,2]
[360739919,1746960637689,-1113.11,0.00019,2]
[360739920,1746960637699,-1113.11,0.00019,2]
[360739921,1746960637708,-222.62,0.00019,2]
[360739922,1746960637717,-222.62,0.00019,2]
[360739923,1746960637726,-222.62,0.00019,2]
[360739924,1746960637735,-222.62,0.00019,2]
[360739925,1746960637745,-300.0,0.00019,2]
[360739926,1746960637754,-151.0,0.00019178,2]
[360739927,1746960637763,-435.87445231,0.00019203,2]
[360739928,1746960637774,-306.92554769,0.00019203,2]
[360739929,1746960637783,-143.20401848,0.00019735,2]
[360739930,1746960637794,-1536.79598152,0.00019735,2]
[360739931,1746960637804,-207.4,0.00019771,2]
[360739932,1746960637816,-12.08248261,0.00019771,2]
[360739933,1746960637830,-656.56937496,0.00019771,2]
[360739934,1746960637839,-151.0,0.00019771,2]
[360739935,1746960637848,-147.34827191,0.00019771,2]
[360739936,1746960637859,-3.65172809,0.00019771,2]
[360739937,1746960637869,-4383.67769359,0.00019782,2]
[360739938,1746960637878,-161.6560563,0.00019782,2]
[360739939,1746960637887,-349.82450004,0.00019783,2]
[360739940,1746960637896,-170.81897787,0.00019783,2]
[360739941,1746960637906,-522.8777,0.00019784,2]
[360739942,1746960637916,-158.4917653,0.00019786,2]
[360739944,1746960637926,-160.12449522,0.00019786,2]
[360739946,1746960637936,-4383.67769359,0.00019795,2]
[360739948,1746960637945,-349.82449996,0.00019796,2]
[360739950,1746960637954,-4383.67769359,0.00019808,2]
[360739952,1746960637964,-349.82449996,0.00019809,2]
[360739954,1746960637973,-4383.67769359,0.00019821,2]
[360739956,1746960637982,-349.82449996,0.00019822,2]
[360739958,1746960637991,-4383.67769359,0.00019834,2]
[360739960,1746960638000,-349.82449996,0.00019835,2]
[360739963,1746960638009,-158.49176528,0.00019843,2]
[360739964,1746960638018,-4383.67769359,0.00019847,2]
[360739966,1746960638027,-349.82449996,0.00019847,2]
[360739968,1746960638036,-23835.05524527,0.00019855,5]
[360739970,1746960639638,-430.17900221,0.00019855,5]
[360739971,1746960639694,-734.76575252,0.00019855,5]
[360739972,1746960639706,-835.75724205,0.00019855,5]
[360739973,1746960639718,-18906.95533045,0.00019855,5]
[360739974,1746960639734,-6093.04466955,0.00019855,5]
[360739975,1746960639746,-2961.69608671,0.00019855,5]
[360739976,1746960639767,-12917.81937905,0.00019855,5]
[360739977,1746960639778,-4383.67769359,0.0001986,2]
[360739978,1746960639788,-349.82449996,0.0001986,2]
[360739979,1746960639799,-163.76,0.00019871,2]
[360739980,1746960639811,-258.43,0.00019871,2]
[360739981,1746960639822,-500.0,0.00019873,2]
[360739982,1746960639834,-500.0,0.00019873,2]
[360739983,1746960639844,-500.0,0.00019873,2]
[360739984,1746960639856,-505.04390981,0.00019873,2]
[360739985,1746960639867,-500.0,0.00019873,2]
[360739986,1746960639879,-157.08564456,0.00019873,2]
[360739987,1746960639891,-4383.67769359,0.00019873,2]
[360739988,1746960639903,-349.82449996,0.00019873,2]
[360739989,1746960639915,-500.0,0.0001988,2]
[360739990,1746960639927,-500.0,0.0001988,2]
[360739991,1746960639939,-500.0,0.0001988,2]
[360739992,1746960639951,-500.0,0.0001988,2]
[360739993,1746960639963,-500.0,0.0001988,2]
[360739994,1746960639975,-500.0,0.0001988,2]
[360739995,1746960639985,-500.0,0.0001988,2]
[360739996,1746960639997,-500.0,0.0001988,2]
[360739997,1746960640009,-500.0,0.0001988,2]
[360739998,1746960640021,-500.0,0.0001988,2]
[360739999,1746960640032,-500.0,0.0001988,2]
[360740000,1746960640044,-500.0,0.0001988,2]
[360740001,1746960640055,-500.0,0.0001988,2]
[360740002,1746960640066,-500.0,0.0001988,2]
[360740003,1746960640077,-500.0,0.0001988,2]
[360740004,1746960640089,-500.0,0.0001988,2]
[360740005,1746960640101,-191.31011461,0.0001988,2]
[360740006,1746960640112,-500.0,0.0001988,2]
[360740007,1746960640123,-500.0,0.0001988,2]
[360740008,1746960640135,-500.0,0.0001988,2]
[360740009,1746960640147,-500.0,0.0001988,2]
[360740010,1746960640160,-500.0,0.0001988,2]
[360740011,1746960640173,-500.0,0.0001988,2]
[360740012,1746960640186,-500.0,0.0001988,2]
[360740013,1746960640198,-500.0,0.0001988,2]
[360740014,1746960640209,-500.0,0.0001988,2]
[360740015,1746960640222,-500.0,0.0001988,2]
[360740016,1746960640234,-500.0,0.0001988,2]
[360740017,1746960640246,-500.0,0.0001988,2]
[360740018,1746960640257,-500.0,0.0001988,2]
[360740019,1746960640268,-500.0,0.0001988,2]
[360740020,1746960640279,-500.0,0.0001988,2]
[360740021,1746960640291,-400.0,0.00019881,2]
[360740022,1746960640305,-400.0,0.00019881,2]
[360740023,1746960640318,-400.0,0.00019881,2]
[360740024,1746960640330,-513.335985,0.00019881,2]
[360740025,1746960640341,-400.0,0.00019881,2]
[360740026,1746960640352,-450.0,0.00019881,2]
[360740027,1746960640362,-450.0,0.00019881,2]
[360740028,1746960640373,-400.0,0.00019881,2]
[360740029,1746960640385,-400.0,0.00019881,2]
[360740030,1746960640395,-400.0,0.00019881,2]
[360740031,1746960640406,-400.0,0.00019881,2]
[360740032,1746960640416,-400.0,0.00019881,2]
[360740033,1746960640426,-400.0,0.00019881,2]
[360740034,1746960640437,-400.0,0.00019881,2]
[360740035,1746960640447,-169.67934595,0.00019881,2]
[360740036,1746960640460,-400.0,0.00019881,2]
[360740037,1746960640473,-400.0,0.00019881,2]
[360740038,1746960640485,-355.21239143,0.00019881,2]
[360740039,1746960640495,-400.0,0.00019881,2]
[360740040,1746960640505,-400.0,0.00019881,2]
[360740041,1746960640516,-400.0,0.00019881,2]
[360740042,1746960640526,-400.0,0.00019881,2]
[360740043,1746960640536,-403.18488884,0.00019881,2]
[360740044,1746960640546,-400.0,0.00019881,2]
[360740045,1746960640557,-400.0,0.00019881,2]
[360740046,1746960640568,-400.0,0.00019881,2]
[360740047,1746960640582,-400.0,0.00019881,2]
[360740048,1746960640603,-400.0,0.00019881,2]
[360740049,1746960640617,-400.0,0.00019881,2]
[360740050,1746960640627,-400.0,0.00019881,2]
[360740051,1746960640637,-400.0,0.00019881,2]
[360740052,1746960640647,-400.0,0.00019881,2]
[360740053,1746960640658,-400.0,0.00019881,2]
[360740054,1746960640668,-400.0,0.00019881,2]
[360740055,1746960640678,-400.0,0.00019881,2]
[360740056,1746960640688,-400.0,0.00019881,2]
[360740057,1746960640698,-319.9,0.00019881,2]
[360740058,1746960640708,-400.0,0.00019881,2]
[360740059,1746960640719,-400.0,0.00019881,2]
[360740060,1746960640729,-262.00402973,0.00019881,2]
[360740061,1746960640741,-400.0,0.00019881,2]
[360740062,1746960640752,-186.85518875,0.00019881,2]
[360740063,1746960640763,-400.0,0.00019881,2]
[360740064,1746960640773,-400.0,0.00019881,2]
[360740065,1746960640783,-400.0,0.00019881,2]
[360740066,1746960640792,-400.0,0.00019881,2]
[360740067,1746960640803,-158.41814215,0.00019881,2]
[360740068,1746960640813,-400.0,0.00019881,2]
[360740069,1746960640823,-400.0,0.00019881,2]
[360740070,1746960640834,-400.0,0.00019881,2]
[360740071,1746960640844,-400.0,0.00019881,2]
[360740072,1746960640854,-400.0,0.00019881,2]
[360740073,1746960640864,-400.0,0.00019881,2]
[360740074,1746960640874,-400.0,0.00019881,2]
[360740075,1746960640884,-991.09,0.00019881,2]
[360740076,1746960640894,-400.0,0.00019881,2]
[360740077,1746960640905,-400.0,0.00019881,2]
[360740078,1746960640915,-400.0,0.00019881,2]
[360740079,1746960640925,-400.0,0.00019881,2]
[360740080,1746960640936,-400.0,0.00019881,2]
[360740081,1746960640946,-400.0,0.00019881,2]
[360740082,1746960640957,-400.0,0.00019881,2]
[360740083,1746960640967,-400.0,0.00019881,2]
[360740084,1746960640977,-400.0,0.00019881,2]
[360740085,1746960640987,-476.0387701,0.00019881,2]
[360740086,1746960640997,-400.0,0.00019881,2]
[360740087,1746960641007,-400.0,0.00019881,2]
[360740088,1746960641018,-400.0,0.00019881,2]
[360740089,1746960641029,-343.86,0.00019881,2]
[360740090,1746960641039,-400.0,0.00019881,2]
[360740091,1746960641050,-400.0,0.00019881,2]
[360740092,1746960641060,-400.0,0.00019881,2]
[360740093,1746960641071,-66348.31,0.00019881,2]
[360740094,1746960641081,-400.0,0.00019881,2]
[360740095,1746960641092,-400.0,0.00019881,2]
[360740096,1746960641102,-506.4,0.00019881,2]
[360740097,1746960641112,-400.0,0.00019881,2]
[360740098,1746960641122,-400.0,0.00019881,2]
[360740099,1746960641132,-400.0,0.00019881,2]
[360740100,1746960641143,-2094.36,0.00019881,2]
[360740101,1746960641156,-400.0,0.00019881,2]
[360740102,1746960641167,-400.0,0.00019881,2]
[360740103,1746960641177,-400.0,0.00019881,2]
[360740104,1746960641188,-400.0,0.00019881,2]
[360740105,1746960641199,-400.0,0.00019881,2]
[360740106,1746960641210,-400.0,0.00019881,2]
[360740107,1746960641221,-300.09,0.00019881,2]
[360740108,1746960641233,-400.0,0.00019881,2]
[360740109,1746960641245,-400.0,0.00019881,2]
[360740110,1746960641256,-400.0,0.00019881,2]
[360740111,1746960641267,-400.0,0.00019881,2]
[360740112,1746960641277,-470.0,0.00019881,2]
[360740113,1746960641288,-400.0,0.00019881,2]
[360740114,1746960641299,-304.59,0.00019881,2]
[360740115,1746960641309,-453.81786962,0.00019881,2]
[360740116,1746960641320,-2314.99,0.00019881,2]
[360740117,1746960641331,-400.0,0.00019881,2]
[360740118,1746960641341,-400.0,0.00019881,2]
[360740119,1746960641352,-400.0,0.00019881,2]
[360740120,1746960641364,-400.0,0.00019881,2]
[360740121,1746960641375,-1913.92,0.00019881,2]
[360740122,1746960641385,-400.0,0.00019881,2]
[360740123,1746960641396,-400.0,0.00019881,2]
[360740124,1746960641407,-400.0,0.00019881,2]
[360740125,1746960641418,-400.0,0.00019881,2]
[360740126,1746960641430,-400.0,0.00019881,2]
[360740127,1746960641440,-2484.54,0.00019881,2]
[360740128,1746960641451,-400.0,0.00019881,2]
[360740129,1746960641462,-1360.99,0.00019881,2]
[360740130,1746960641473,-825.24,0.00019881,2]
[360740131,1746960641483,-400.0,0.00019881,2]
[360740132,1746960641494,-400.0,0.00019881,2]
[360740133,1746960641504,-400.0,0.00019881,2]
[360740134,1746960641515,-2489.8,0.00019881,2]
[360740135,1746960641526,-400.0,0.00019881,2]
[360740136,1746960641536,-436.77328701,0.00019881,2]
[360740137,1746960641546,-400.0,0.00019881,2]
[360740138,1746960641556,-400.0,0.00019881,2]
[360740139,1746960641567,-400.0,0.00019881,2]
[360740140,1746960641577,-400.0,0.00019881,2]
[360740141,1746960641588,-504.15742015,0.00019881,2]
[360740142,1746960641598,-470.0,0.00019881,2]
[360740143,1746960641609,-933.8,0.00019881,2]
[360740144,1746960641619,-470.0,0.00019881,2]
[360740145,1746960641629,-400.0,0.00019881,2]
[360740146,1746960641639,-2695.04,0.00019881,2]
[360740147,1746960641649,-400.0,0.00019881,2]
[360740148,1746960641660,-450.0,0.00019881,2]
[360740149,1746960641670,-500.0,0.00019881,2]
[360740150,1746960641681,-400.0,0.00019881,2]
[360740151,1746960641691,-400.0,0.00019881,2]
[360740152,1746960641702,-400.0,0.00019881,2]
[360740153,1746960641713,-400.0,0.00019881,2]
[360740154,1746960641723,-400.0,0.00019881,2]
[360740155,1746960641734,-400.0,0.00019881,2]
[360740156,1746960641744,-1014.23419445,0.00019881,2]
[360740157,1746960641755,-400.0,0.00019881,2]
[360740158,1746960641766,-400.0,0.00019881,2]
[360740159,1746960641776,-400.0,0.00019881,2]
[360740160,1746960641787,-445.48385582,0.00019881,2]
[360740161,1746960641797,-1566.76,0.00019881,2]
[360740162,1746960641808,-400.0,0.00019881,2]
[360740163,1746960641818,-400.0,0.00019881,2]
[360740164,1746960641829,-400.0,0.00019881,2]
[360740165,1746960641839,-400.0,0.00019881,2]
[360740166,1746960641849,-170.56425577,0.00019881,2]
[360740167,1746960641860,-309.98315375,0.00019881,2]
[360740168,1746960641870,-1175.3,0.00019881,2]
[360740169,1746960641881,-183.48644816,0.00019881,2]
[360740170,1746960641892,-349.66468251,0.00019881,2]
[360740171,1746960641902,-400.0,0.00019881,2]
[360740172,1746960641914,-7769.3,0.00019881,2]
[360740173,1746960641924,-400.0,0.00019881,2]
[360740174,1746960641935,-491.24,0.00019881,2]
[360740175,1746960641945,-400.0,0.00019881,2]
[360740176,1746960641955,-400.0,0.00019881,2]
[360740177,1746960641965,-4232.26,0.00019881,2]
[360740178,1746960641975,-400.0,0.00019881,2]
[360740179,1746960641986,-400.0,0.00019881,2]
[360740180,1746960641996,-1000.0,0.00019881,2]
[360740181,1746960642006,-400.0,0.00019881,2]
[360740182,1746960642016,-400.0,0.00019881,2]
[360740183,1746960642027,-400.0,0.00019881,2]
[360740184,1746960642037,-400.0,0.00019881,2]
[360740185,1746960642047,-400.0,0.00019881,2]
[360740186,1746960642058,-400.0,0.00019881,2]
[360740187,1746960642068,-2722.92,0.00019881,2]
[360740188,1746960642078,-400.0,0.00019881,2]
[360740189,1746960642088,-400.0,0.00019881,2]
[360740190,1746960642099,-400.0,0.00019881,2]
[360740191,1746960642109,-500.0,0.00019881,2]
[360740192,1746960642120,-205.83256751,0.00019881,2]
[360740193,1746960642130,-169.47017528,0.00019881,2]
[360740194,1746960642141,-500.0,0.00019881,2]
[360740195,1746960642152,-303.43967929,0.00019881,2]
[360740196,1746960642163,-400.0,0.00019881,2]
[360740197,1746960642173,-712.02,0.00019881,2]
[360740198,1746960642184,-4190.99,0.00019881,2]
[360740200,1746960642194,-400.0,0.00019882,2]
[360740202,1746960642204,-400.0,0.00019882,2]
[360740203,1746960642214,-400.0,0.00019882,2]
[360740204,1746960642224,-199.29602508,0.00019882,2]
[360740205,1746960642236,-505.76806015,0.00019882,2]
[360740206,1746960642247,-400.0,0.00019882,2]
[360740207,1746960642257,-247.48185396,0.00019882,2]
[360740208,1746960642267,-409.35507235,0.00019882,2]
[360740209,1746960642277,-400.0,0.00019882,2]
[360740210,1746960642287,-400.0,0.00019882,2]
[360740211,1746960642298,-390.98180446,0.00019882,2]
[360740212,1746960642308,-450.0,0.00019882,2]
[360740213,1746960642318,-400.0,0.00019882,2]
[360740214,1746960642328,-400.0,0.00019882,2]
[360740215,1746960642339,-400.0,0.00019882,2]
[360740216,1746960642349,-492.79656196,0.00019882,2]
[360740217,1746960642358,-400.0,0.00019882,2]
[360740218,1746960642369,-400.0,0.00019882,2]
[360740220,1746960642379,-400.0,0.00019882,2]
[360740222,1746960642389,-400.0,0.00019882,2]
[360740223,1746960642399,-400.0,0.00019882,2]
[360740226,1746960642410,-400.0,0.00019882,2]
[360740228,1746960642420,-281.02728098,0.00019882,2]
[360740229,1746960642430,-400.0,0.00019882,2]
[360740230,1746960642440,-439.75,0.00019882,2]
[360740231,1746960642450,-400.0,0.00019882,2]
[360740232,1746960642460,-400.0,0.00019882,2]
[360740233,1746960642470,-400.0,0.00019882,2]
[360740234,1746960642480,-400.0,0.00019882,2]
[360740235,1746960642490,-400.0,0.00019882,2]
[360740236,1746960642500,-400.0,0.00019882,2]
[360740237,1746960642511,-441.32252213,0.00019882,2]
[360740238,1746960642520,-400.0,0.00019882,2]
[360740239,1746960642530,-400.0,0.00019882,2]
[360740240,1746960642540,-164.63353695,0.00019882,2]
[360740241,1746960642551,-400.0,0.00019882,2]
[360740242,1746960642561,-400.0,0.00019882,2]
[360740243,1746960642571,-400.0,0.00019882,2]
[360740244,1746960642581,-400.0,0.00019882,2]
[360740245,1746960642591,-400.0,0.00019882,2]
[360740246,1746960642601,-400.0,0.00019882,2]
[360740247,1746960642611,-400.0,0.00019882,2]
[360740248,1746960642622,-400.0,0.00019882,2]
[360740249,1746960642632,-400.0,0.00019882,2]
[360740250,1746960642642,-400.0,0.00019882,2]
[360740251,1746960642989,-400.0,0.00019882,2]
[360740252,1746960643013,-427.35358423,0.00019882,2]
[360740253,1746960643030,-400.0,0.00019882,2]
[360740254,1746960643040,-400.0,0.00019882,2]
[360740255,1746960643049,-400.0,0.00019882,2]
[360740256,1746960643059,-400.0,0.00019882,2]
[360740257,1746960643068,-400.0,0.00019882,2]
[360740258,1746960643078,-400.0,0.00019882,2]
[360740259,1746960643088,-400.0,0.00019882,2]
[360740260,1746960643097,-400.0,0.00019882,2]
[360740261,1746960643109,-400.0,0.00019882,2]
[360740262,1746960643118,-1131.49,0.00019882,2]
[360740263,1746960643127,-400.0,0.00019882,2]
[360740264,1746960643138,-300.0,0.00019882,2]
[360740265,1746960643147,-400.0,0.00019882,2]
[360740266,1746960643161,-400.0,0.00019882,2]
[360740267,1746960643170,-400.0,0.00019882,2]
[360740268,1746960643180,-1208.87,0.00019882,2]
[360740269,1746960643190,-400.0,0.00019882,2]
[360740270,1746960643199,-400.0,0.00019882,2]
[360740271,1746960643208,-400.0,0.00019882,2]
[360740272,1746960643218,-400.0,0.00019882,2]
[360740274,1746960643228,-420.74,0.00019882,2]
[360740275,1746960643237,-400.0,0.00019882,2]
[360740277,1746960643246,-400.0,0.00019882,2]
[360740278,1746960643255,-400.0,0.00019882,2]
[360740279,1746960643265,-400.0,0.00019882,2]
[360740280,1746960643274,-400.0,0.00019882,2]
[360740281,1746960643284,-400.0,0.00019882,2]
[360740282,1746960643293,-400.0,0.00019882,2]
[360740283,1746960643302,-400.0,0.00019882,2]
[360740284,1746960643312,-400.0,0.00019882,2]
[360740285,1746960643321,-400.0,0.00019882,2]
[360740286,1746960643331,-400.0,0.00019882,2]
[360740287,1746960643341,-400.0,0.00019882,2]
[360740288,1746960643351,-400.0,0.00019882,2]
[360740289,1746960643360,-400.0,0.00019882,2]
[360740290,1746960643370,-400.0,0.00019882,2]
[360740291,1746960643380,-400.0,0.00019882,2]
[360740292,1746960643389,-400.0,0.00019882,2]
[360740293,1746960643399,-400.0,0.00019882,2]
[360740294,1746960643410,-400.0,0.00019882,2]
[360740295,1746960643420,-400.0,0.00019882,2]
[360740296,1746960643430,-398.65,0.00019882,2]
[360740297,1746960643439,-400.0,0.00019882,2]
[360740298,1746960643448,-400.0,0.00019882,2]
[360740299,1746960643458,-400.0,0.00019882,2]
[360740300,1746960643468,-466.38441415,0.00019882,2]
[360740301,1746960643478,-400.0,0.00019882,2]
[360740302,1746960643487,-400.0,0.00019882,2]
[360740303,1746960643497,-400.0,0.00019882,2]
[360740304,1746960643506,-400.0,0.00019882,2]
[360740305,1746960643516,-400.0,0.00019882,2]
[360740306,1746960643525,-400.0,0.00019882,2]
[360740307,1746960643535,-400.0,0.00019882,2]
[360740308,1746960643544,-400.0,0.00019882,2]
[360740309,1746960643554,-400.0,0.00019882,2]
[360740310,1746960643563,-467.7,0.00019882,2]
[360740311,1746960643574,-400.0,0.00019882,2]
[360740312,1746960643583,-400.0,0.00019882,2]
[360740313,1746960643592,-400.0,0.00019882,2]
[360740314,1746960643602,-400.0,0.00019882,2]
[360740315,1746960643611,-400.0,0.00019882,2]
[360740316,1746960643620,-400.0,0.00019882,2]
[360740317,1746960643629,-400.0,0.00019882,2]
[360740318,1746960643639,-400.0,0.00019882,2]
[360740319,1746960643648,-911.89,0.00019882,2]